bitfinex/quotes_SOLUSD_20250617
["timestamp","ask_amount","ask_price","bid_price","bid_amount"]
[1750176664814,16.7558297,147.56,147.5,6.77966101]
[1750176664975,155.02,147.57,147.52,16.7558297]
[1750176665179,171.7758297,147.57,147.53,16.7558297]
[1750176665596,171.7758297,147.57,147.5,6.77966101]
[1750176665805,16.7558297,147.56,147.52,16.7558297]
[1750176666213,161.7965365,147.57,147.5,23.53549071]
[1750176666214,16.7558297,147.54,147.5,23.53549071]
[1750176666412,16.7558297,147.54,147.5,6.77966101]
[1750176667072,16.7558297,147.53,147.48,23.53641011]
[1750176667278,16.7558297,147.53,147.49,16.7558297]
[1750176667481,16.7558297,147.53,147.48,6.78058041]
[1750176667778,16.7558297,147.53,147.48,23.53641011]
[1750176667987,16.7558297,147.53,147.49,16.7558297]
[1750176668382,16.7558297,147.53,147.47,6.78104021]
[1750176668383,16.7558297,147.52,147.47,6.78104021]
[1750176668584,16.7558297,147.52,147.46,0.14216157]
[1750176668585,16.7558297,147.5,147.46,6.78132988]
[1750176668876,16.7558297,147.5,147.46,23.53715958]
[1750176669089,16.7558297,147.49,147.43,6.78288001]
[1750176669798,16.7558297,147.48,147.44,16.7558297]
[1750176670185,16.7558297,147.47,147.43,6.78288001]
[1750176670515,16.7558297,147.48,147.43,16.7558297]
[1750176670730,72.2558297,147.49,147.44,16.7558297]
[1750176670884,16.7558297,147.48,147.44,16.7558297]
[1750176671408,16.7558297,147.48,147.43,23.53860686]
[1750176671592,177.4,147.52,147.47,16.7558297]
[1750176671912,177.4,147.52,147.44,0.14216157]
[1750176671913,147.9,147.52,147.49,16.7558297]
[1750176672404,147.9,147.52,147.44,19.07613357]
[1750176672604,147.9,147.52,147.46,0.14216157]
[1750176672809,147.9,147.52,147.47,16.7558297]
[1750176672810,16.7558297,147.51,147.47,16.7558297]
[1750176673186,147.9,147.52,147.45,6.78195998]
[1750176673388,16.7558297,147.51,147.45,6.78195998]
[1750176673604,16.7558297,147.51,147.47,16.7558297]
[1750176673799,147.9,147.52,147.48,16.7558297]
[1750176674007,147.9,147.52,147.49,16.7558297]
[1750176674189,164.6558297,147.52,147.48,16.7558297]
[1750176674915,164.6558297,147.52,147.47,16.7558297]
[1750176675088,164.6558297,147.52,147.48,16.7558297]
[1750176675908,147.9,147.52,147.49,16.7558297]
[1750176676407,147.9,147.52,147.48,16.7558297]
[1750176676584,147.9,147.52,147.46,23.87741179]
[1750176676783,147.9,147.52,147.48,16.7558297]
[1750176677909,1.5947,147.56,147.46,23.87741179]
[1750176677910,155.02,147.57,147.52,0.14216157]
[1750176678242,16.7558297,147.55,147.5,42.7558297]
[1750176678389,16.7558297,147.54,147.5,42.7558297]
[1750176678886,16.7558297,147.54,147.5,49.53527412]
[1750176679078,16.7558297,147.54,147.5,32.77944442]
[1750176679278,16.7558297,147.54,147.5,49.53540419]
[1750176679517,164.6558297,147.53,147.48,26.0]
[1750176679689,164.6558297,147.52,147.48,42.7558297]
[1750176679886,147.9,147.51,147.48,42.7558297]
[1750176680202,147.9,147.5,147.48,42.7558297]
[1750176680410,147.9,147.5,147.47,16.7558297]
[1750176680709,147.9,147.49,147.47,16.7558297]
[1750176680884,147.9,147.49,147.46,23.53732976]
[1750176681097,164.6558297,147.49,147.45,6.78178717]
[1750176681292,147.9,147.48,147.45,23.53761687]
[1750176681497,147.9,147.48,147.44,23.53811443]
[1750176681498,147.9,147.47,147.44,23.53811443]
[1750176681697,164.6558297,147.46,147.42,16.7558297]
[1750176682299,147.9,147.46,147.42,16.7558297]
[1750176682508,164.6558297,147.46,147.4,6.78426051]
[1750176682804,164.6558297,147.46,147.42,23.53879591]
[1750176683003,147.9,147.46,147.42,6.78296621]
[1750176683205,164.6558297,147.46,147.42,23.53879591]
[1750176683803,16.7558297,147.45,147.41,6.7836406]
[1750176684000,147.9,147.44,147.4,49.53999998]
[1750176684198,147.9,147.44,147.37,25.03944886]
[1750176684199,164.6558297,147.44,147.39,23.54038878]
[1750176684408,164.6558297,147.43,147.39,23.54038878]
[1750176684619,147.9,147.42,147.39,23.54038878]
[1750176685603,147.9,147.47,147.41,42.7558297]
[1750176685803,147.9,147.47,147.46,16.7558297]
[1750176686301,147.9,147.46,147.39,23.7463611]
[1750176686511,194.0558297,147.46,147.41,16.7558297]
[1750176686695,164.6558297,147.45,147.4,16.7558297]
[1750176686895,164.6558297,147.45,147.41,6.78380028]
[1750176687404,16.7558297,147.44,147.4,16.7558297]
[1750176687717,46.1558297,147.44,147.4,16.7558297]
[1750176687918,147.9,147.45,147.42,16.7558297]
[1750176688117,147.9,147.45,147.43,16.7558297]
[1750176688296,147.9,147.45,147.4,0.28432314]
[1750176688502,147.9,147.45,147.42,16.7558297]
[1750176688896,147.9,147.45,147.42,18.38204339]
[1750176689102,147.9,147.45,147.42,6.7829391]
[1750176689723,159.49910429,147.45,147.41,6.78365215]
[1750176690106,147.9,147.45,147.41,6.78365215]
[1750176690604,11.59910429,147.44,147.41,6.78365215]
[1750176690804,147.9,147.43,147.39,18.38382509]
[1750176691006,147.9,147.43,147.4,11.59910429]
[1750176691522,147.9,147.42,147.39,6.7847208]
[1750176691841,147.9,147.42,147.35,11.59910429]
[1750176691842,11.59910429,147.4,147.35,11.59910429]
[1750176692048,11.59910429,147.39,147.35,11.59910429]
[1750176692404,29.34,147.4,147.34,6.78702321]
[1750176692405,11.59910429,147.38,147.34,6.78702321]
[1750176692605,40.95910429,147.38,147.34,18.3861275]
[1750176692819,29.36,147.4,147.37,11.59910429]
[1750176693011,147.9,147.46,147.4,32.78426051]
[1750176693255,147.9,147.46,147.45,11.59910429]
[1750176693421,147.9,147.46,147.41,0.42648471]
[1750176693621,147.9,147.46,147.45,11.59910429]
[1750176694332,147.9,147.46,147.41,0.42648471]
[1750176694509,147.9,147.46,147.44,11.59910429]
[1750176694904,147.9,147.46,147.44,16.74808353]
[1750176695300,147.9,147.46,147.44,23.530068]
[1750176696729,147.9,147.46,147.43,6.78257154]
[1750176696917,147.9,147.46,147.44,16.74808353]
[1750176697641,147.9,147.45,147.44,16.74808353]
[1750176698633,147.9,147.45,147.43,16.74808353]
[1750176698938,147.9,147.45,147.44,16.74808353]
[1750176699437,147.9,147.45,147.44,23.53050349]
[1750176699641,147.9,147.5,147.44,23.67266506]
[1750176699932,147.9,147.5,147.49,16.74808353]
[1750176700140,29.3,147.55,147.49,16.74808353]
[1750176700306,5.01657202,147.54,147.51,16.74808353]
[1750176700508,7.04,147.57,147.53,16.74808353]
[1750176700709,7.04,147.57,147.55,16.74808353]
[1750176700710,12.05746248,147.57,147.55,16.74808353]
[1750176700920,12.05746248,147.57,147.54,16.74808353]
[1750176701527,16.74808353,147.55,147.47,6.78104021]
[1750176701731,16.74808353,147.49,147.44,6.78241996]
[1750176701931,16.74808353,147.47,147.44,6.78241996]
[1750176702211,16.74808353,147.47,147.43,16.74808353]
[1750176702634,29.32,147.49,147.43,16.74808353]
[1750176702833,16.74808353,147.47,147.43,16.74808353]
[1750176703031,16.74808353,147.48,147.44,16.74808353]
[1750176703236,29.32,147.49,147.45,16.74808353]
[1750176703432,16.74808353,147.5,147.46,23.52933134]
[1750176703611,16.74808353,147.49,147.45,23.52991294]
[1750176704639,16.74808353,147.5,147.46,16.74808353]
[1750176705040,29.32,147.51,147.47,16.74808353]
[1750176705216,16.74808353,147.51,147.47,16.74808353]
[1750176705419,147.9,147.5,147.47,16.74808353]
[1750176705737,147.9,147.49,147.47,22.86451187]
[1750176706320,147.9,147.49,147.48,16.74808353]
[1750176706936,147.9,147.49,147.47,23.52911187]
[1750176707744,147.9,147.49,147.48,16.74808353]
[1750176707937,147.9,147.49,147.48,16.8902451]
[1750176708616,147.9,147.54,147.51,26.0]
[1750176708821,16.74808353,147.6,147.53,16.74808353]
[1750176709129,7.57886899,147.59,147.57,16.74808353]
[1750176709348,7.57886899,147.59,147.53,26.0]
[1750176709349,2.52736523,147.58,147.53,26.0]
[1750176709641,35.50790238,147.61,147.58,6.7759859]
[1750176709642,2.52736523,147.59,147.58,6.7759859]
[1750176709848,2.52736523,147.6,147.58,23.52406943]
[1750176710012,33.00360614,147.61,147.59,16.74808353]
[1750176710217,27.95210238,147.61,147.6,16.74808353]
[1750176710451,8.49512032,147.62,147.6,16.74808353]
[1750176710757,8.49512032,147.62,147.61,16.74808353]
[1750176711516,8.49512032,147.62,147.61,23.52269229]
[1750176711736,6.9,147.67,147.61,23.66485386]
[1750176711923,9.42569975,147.67,147.64,16.74808353]
[1750176712134,26.17378328,147.67,147.61,6.77460876]
[1750176712336,26.17378328,147.67,147.62,16.74808353]
[1750176712548,26.17378328,147.67,147.63,16.74808353]
[1750176712748,16.74808353,147.65,147.61,23.52269229]
[1750176712954,16.74808353,147.65,147.55,18.46746012]
[1750176712955,29.26,147.65,147.55,18.46746012]
[1750176713131,16.74808353,147.62,147.56,32.77690431]
[1750176713335,16.74808353,147.62,147.51,6.9]
[1750176713336,16.74808353,147.58,147.53,6.77828238]
[1750176713532,29.26,147.59,147.53,23.52636591]
[1750176713731,16.74808353,147.58,147.53,6.77828238]
[1750176713932,16.74808353,147.58,147.54,16.74808353]
[1750176714128,16.74808353,147.57,147.53,23.52636591]
[1750176714330,16.74808353,147.56,147.52,16.74808353]
[1750176714757,16.74808353,147.57,147.53,16.74808353]
[1750176715335,177.16,147.59,147.54,16.74808353]
[1750176715538,177.16,147.59,147.55,16.74808353]
[1750176715539,193.90808353,147.59,147.55,16.74808353]
[1750176715740,147.9,147.58,147.54,16.74808353]
[1750176716150,147.9,147.58,147.56,16.74808353]
[1750176716752,147.9,147.58,147.55,16.74808353]
[1750176716967,147.9,147.58,147.57,16.74808353]
[1750176717560,147.9,147.58,147.57,23.5245286]
[1750176718069,147.9,147.64,147.58,0.14216157]
[1750176718252,29.24,147.64,147.61,16.74808353]
[1750176718458,177.14,147.64,147.61,16.74808353]
[1750176718655,147.9,147.64,147.61,16.74808353]
[1750176719573,18.64964886,147.68,147.61,16.74808353]
[1750176719574,147.9,147.63,147.62,6.77414984]
[1750176719784,16.74808353,147.72,147.64,0.28432314]
[1750176720088,16.74808353,147.7,147.65,26.0]
[1750176720370,16.74808353,147.7,147.66,16.74808353]
[1750176720539,16.74808353,147.69,147.62,6.77414984]
[1750176720743,26.0,147.67,147.6,6.77506775]
[1750176720944,16.74808353,147.64,147.6,6.77506775]
[1750176721151,29.22,147.66,147.6,23.52315128]
[1750176721383,16.74808353,147.63,147.59,16.74808353]
[1750176721672,16.74808353,147.63,147.59,23.52357348]
[1750176721673,45.98808353,147.63,147.59,23.52357348]
[1750176721853,45.98808353,147.63,147.55,23.84242316]
[1750176721854,16.74808353,147.61,147.56,6.77690431]
[1750176722183,16.74808353,147.62,147.58,16.74808353]
[1750176722665,29.24,147.63,147.57,16.74808353]
[1750176722666,16.74808353,147.61,147.57,16.74808353]
[1750176723073,55.24,147.63,147.57,16.74808353]
[1750176723308,16.74808353,147.61,147.56,23.52498784]
[1750176723783,45.98808353,147.63,147.59,16.74808353]
[1750176724652,16.74808353,147.62,147.58,16.74808353]
[1750176724848,147.9,147.63,147.6,16.74808353]
[1750176725275,164.64808353,147.63,147.59,16.74808353]
[1750176725492,147.9,147.63,147.62,16.74808353]
[1750176725652,147.9,147.63,147.61,6.77422442]
[1750176725851,147.9,147.63,147.62,16.74808353]
[1750176726364,147.9,147.63,147.61,6.77422442]
[1750176726561,147.9,147.63,147.62,16.74808353]
[1750176727462,147.9,147.63,147.61,6.77422442]
[1750176727866,147.9,147.63,147.61,23.52230795]
[1750176728198,147.9,147.63,147.59,6.77552679]
[1750176728366,16.74808353,147.62,147.59,6.77552679]
[1750176728571,16.74808353,147.6,147.56,23.52498784]
[1750176728767,16.74808353,147.59,147.56,6.77690431]
[1750176728970,147.9,147.58,147.55,6.77722415]
[1750176729465,147.9,147.58,147.55,23.52530768]
[1750176730314,147.9,147.58,147.57,16.74808353]
[1750176730473,147.9,147.64,147.58,0.14216157]
[1750176730673,164.64808353,147.64,147.6,16.74808353]
[1750176731278,164.64808353,147.64,147.62,16.74808353]
[1750176731279,147.9,147.64,147.62,16.74808353]
[1750176731477,147.9,147.64,147.58,32.82872314]
[1750176731803,147.9,147.64,147.61,23.52239953]
[1750176732391,177.14,147.64,147.6,16.74808353]
[1750176732799,193.88808353,147.64,147.6,16.74808353]
[1750176733107,193.88808353,147.64,147.59,23.52346354]
[1750176733108,16.74808353,147.63,147.59,23.52346354]
[1750176733272,16.74808353,147.62,147.58,23.52388816]
[1750176733476,16.74808353,147.62,147.56,6.77690431]
[1750176733700,16.74808353,147.63,147.59,16.74808353]
[1750176734007,16.74808353,147.62,147.58,16.74808353]
[1750176734209,177.14,147.64,147.59,23.52361032]
[1750176734416,16.74808353,147.63,147.59,23.52361032]
[1750176734897,16.74808353,147.63,147.59,6.77552679]
[1750176735107,16.74808353,147.63,147.59,23.52361032]
[1750176735974,16.74808353,147.63,147.56,16.94226077]
[1750176735975,16.74808353,147.62,147.58,16.74808353]
[1750176736177,147.9,147.61,147.59,16.74808353]
[1750176736374,147.9,147.64,147.6,33.49616706]
[1750176736592,147.9,147.7,147.64,0.14216157]
[1750176736875,16.74808353,147.69,147.62,0.42648471]
[1750176737077,193.84808353,147.7,147.65,16.74808353]
[1750176737375,193.84808353,147.7,147.66,16.74808353]
[1750176737881,147.9,147.69,147.66,16.74808353]
[1750176738078,147.9,147.69,147.65,6.7726027]
[1750176738276,147.9,147.69,147.66,16.74808353]
[1750176738494,147.9,147.69,147.67,16.74808353]
[1750176738684,147.9,147.68,147.65,6.7726027]
[1750176738889,147.9,147.68,147.65,23.52068623]
[1750176739078,147.9,147.68,147.66,16.74808353]
[1750176739475,147.9,147.68,147.61,44.46926573]
[1750176739677,16.74808353,147.66,147.62,23.52223337]
[1750176739898,16.74808353,147.63,147.59,23.52361032]
[1750176740486,45.94808353,147.64,147.6,16.74808353]
[1750176740682,29.2,147.64,147.6,16.74808353]
[1750176740890,45.94808353,147.64,147.6,16.74808353]
[1750176741289,45.94808353,147.64,147.6,23.5227196]
[1750176741600,45.94808353,147.64,147.6,6.77463607]
[1750176743302,16.74808353,147.62,147.59,6.77541976]
[1750176743609,164.64808353,147.63,147.59,6.77541976]
[1750176743999,147.9,147.63,147.59,23.52350329]
[1750176744212,147.9,147.63,147.6,16.74808353]
[1750176744527,29.2,147.64,147.59,6.77541976]
[1750176744528,164.64808353,147.62,147.59,6.77541976]
[1750176745421,147.9,147.62,147.6,16.74808353]
[1750176746487,147.9,147.62,147.59,6.77541976]
[1750176746691,147.9,147.62,147.59,23.52350329]
[1750176746900,147.9,147.62,147.59,18.34681497]
[1750176748129,159.47139521,147.62,147.59,6.77541976]
[1750176749131,11.57139521,147.6,147.52,44.32415038]
[1750176749442,11.57139521,147.58,147.54,11.57139521]
[1750176749730,159.47139521,147.59,147.54,11.57139521]
[1750176749934,11.57139521,147.57,147.54,6.77764057]
[1750176750108,147.9,147.56,147.54,6.77764057]
[1750176750505,147.9,147.56,147.55,11.57139521]
[1750176750692,147.9,147.61,147.56,0.14216157]
[1750176750891,147.9,147.61,147.59,11.57139521]
[1750176751826,147.9,147.61,147.58,11.57139521]
[1750176752027,147.9,147.61,147.59,6.77552679]
[1750176753513,147.9,147.61,147.6,16.71727682]
[1750176753903,32.4357854,147.68,147.6,16.71727682]
[1750176753904,6.25833654,147.71,147.64,0.14216157]
[1750176754109,7.55880284,147.7,147.68,16.71727682]
[1750176754322,7.55880284,147.7,147.64,0.14216157]
[1750176754323,7.55880284,147.69,147.64,0.14216157]
[1750176754520,16.71727682,147.65,147.56,1.5543]
[1750176754725,16.71727682,147.62,147.59,6.77552679]
[1750176755032,55.14,147.66,147.59,6.77552679]
[1750176755033,16.71727682,147.63,147.59,6.77552679]
[1750176755235,7.56068027,147.64,147.61,16.71727682]
[1750176755444,7.55975862,147.66,147.61,16.71727682]
[1750176755596,24.27703544,147.65,147.61,16.71727682]
[1750176755908,7.55975862,147.64,147.61,16.71727682]
[1750176756225,21.75782432,147.66,147.61,16.71727682]
[1750176756526,7.56010338,147.65,147.61,16.71727682]
[1750176756824,24.27738329,147.64,147.59,23.49280361]
[1750176757001,16.71727682,147.64,147.6,16.71727682]
[1750176757223,16.71727682,147.64,147.58,6.7758351]
[1750176757441,19.23679815,147.63,147.58,23.49311192]
[1750176757618,19.23679815,147.63,147.58,6.7758351]
[1750176757817,16.71727682,147.63,147.59,16.71727682]
[1750176758035,19.23691403,147.63,147.59,16.71727682]
[1750176758523,16.71727682,147.62,147.57,6.77634657]
[1750176758943,35.91293586,147.65,147.56,23.49399477]
[1750176758944,16.71727682,147.61,147.56,23.49399477]
[1750176759447,147.9,147.6,147.56,23.49399477]
[1750176760547,16.71727682,147.58,147.53,6.77828238]
[1750176760852,164.61727682,147.6,147.56,16.71727682]
[1750176761522,164.61727682,147.6,147.55,23.49439442]
[1750176762138,16.71727682,147.59,147.55,23.49439442]
[1750176762325,164.61727682,147.6,147.55,23.49439442]
[1750176762530,147.9,147.6,147.57,16.71727682]
[1750176763333,147.9,147.6,147.59,16.71727682]
[1750176764951,147.9,147.6,147.59,23.49280361]
[1750176765441,147.9,147.6,147.59,16.71727682]
[1750176765640,147.9,147.6,147.58,16.71727682]
[1750176765842,6.30185729,147.68,147.59,39.85881521]
[1750176766067,5.04933318,147.67,147.61,19.07613357]
[1750176766251,7.57031516,147.68,147.66,16.71727682]
[1750176766564,7.57031516,147.69,147.67,16.71727682]
[1750176766761,7.56970882,147.69,147.67,16.71727682]
[1750176766963,147.9,147.7,147.68,16.71727682]
[1750176767174,147.9,147.7,147.68,23.48864659]
[1750176767945,8.4582806,147.73,147.69,16.71727682]
[1750176768168,7.57376949,147.72,147.71,16.71727682]
[1750176768353,2.52073457,147.72,147.71,16.71727682]
[1750176768945,8.4582806,147.73,147.71,16.71727682]
[1750176769139,13.51131552,147.73,147.72,16.71727682]
[1750176769343,8.4582806,147.73,147.72,16.71727682]
[1750176770290,8.4582806,147.73,147.7,26.14216157]
[1750176770584,8.4582806,147.73,147.72,16.71727682]
[1750176770942,8.4582806,147.73,147.72,23.48684086]
[1750176772843,8.4582806,147.73,147.72,16.71727682]
[1750176773670,8.4582806,147.73,147.72,23.48684086]
[1750176774948,2.51480946,147.79,147.72,18.45815297]
[1750176775148,2.51483043,147.8,147.78,11.54642736]
[1750176775356,35.05269053,147.82,147.79,11.54642736]
[1750176775555,35.05269053,147.82,147.76,0.42648471]
[1750176775766,35.05269053,147.82,147.79,11.54642736]
[1750176776170,11.54642736,147.81,147.73,18.64964886]
[1750176776360,26.0,147.8,147.74,11.54642736]
[1750176776769,37.54642736,147.79,147.75,11.54642736]
[1750176777354,37.54642736,147.79,147.74,18.31466013]
[1750176777769,11.54642736,147.78,147.73,18.31537001]
[1750176778177,11.54642736,147.78,147.74,11.54642736]
[1750176778388,32.76641893,147.79,147.74,11.54642736]
[1750176778389,37.54642736,147.79,147.74,11.54642736]
[1750176778558,32.76645343,147.79,147.74,11.54642736]
[1750176778759,11.54642736,147.78,147.74,11.54642736]
[1750176779384,11.54642736,147.78,147.74,18.31495256]
[1750176779592,9.82239757,147.85,147.76,6.4291]
[1750176779784,11.54642736,147.82,147.78,11.54642736]
[1750176780083,11.54642736,147.83,147.78,11.54642736]
[1750176780268,11.54642736,147.82,147.78,11.54642736]
[1750176780597,11.54642736,147.82,147.75,0.14216157]
[1750176780782,11.54642736,147.78,147.74,6.7685252]
[1750176780969,11.54642736,147.78,147.74,18.31495256]
[1750176781159,11.54642736,147.79,147.75,11.54642736]
[1750176781359,37.54642736,147.8,147.76,11.54642736]
[1750176781598,11.54642736,147.77,147.73,11.54642736]
[1750176781963,26.0,147.76,147.72,18.3159914]
[1750176782294,37.54642736,147.76,147.72,18.3159914]
[1750176782972,11.54642736,147.74,147.68,16.92742013]
[1750176783187,11.54642736,147.74,147.69,18.31736648]
[1750176783188,11.54642736,147.73,147.69,18.31736648]
[1750176783788,11.54642736,147.73,147.69,6.77093912]
[1750176783968,11.54642736,147.73,147.69,18.31736648]
[1750176784179,37.54642736,147.74,147.7,11.54642736]
[1750176784474,37.54642736,147.74,147.69,18.31736648]
[1750176784475,26.0,147.74,147.69,18.31736648]
[1750176785088,37.54642736,147.7,147.62,6.77414984]
[1750176785274,37.54642736,147.7,147.62,11.54642736]
[1750176785275,26.0,147.67,147.62,11.54642736]
[1750176785485,26.0,147.67,147.64,11.54642736]
[1750176785971,26.0,147.67,147.62,11.54642736]
[1750176785972,11.54642736,147.66,147.62,11.54642736]
[1750176786366,37.54642736,147.67,147.63,11.54642736]
[1750176786987,11.54642736,147.66,147.62,11.54642736]
[1750176787363,37.54642736,147.67,147.62,18.32028035]
[1750176787560,11.54642736,147.66,147.62,11.54642736]
[1750176787762,11.54642736,147.64,147.59,11.54642736]
[1750176787962,11.54642736,147.62,147.58,18.32241326]
[1750176788168,11.54642736,147.62,147.58,6.7759859]
[1750176788469,11.54642736,147.6,147.57,6.77639368]
[1750176789015,11.54642736,147.61,147.57,6.77639368]
[1750176789164,11.54642736,147.61,147.57,18.32282104]
[1750176789366,11.54642736,147.59,147.54,11.54642736]
[1750176789675,26.0,147.6,147.48,1.6616]
[1750176789676,11.54642736,147.55,147.49,6.78012068]
[1750176789880,11.54642736,147.52,147.49,6.78012068]
[1750176790371,11.54642736,147.53,147.49,18.32654804]
[1750176791064,11.54642736,147.51,147.47,11.54642736]
[1750176791278,11.54642736,147.5,147.45,6.78195998]
[1750176791568,11.54642736,147.5,147.46,11.54642736]
[1750176792164,11.54642736,147.49,147.44,18.3287271]
[1750176792376,29.42,147.5,147.44,6.78229974]
[1750176792583,29.42,147.5,147.44,18.3287271]
[1750176792584,11.54642736,147.48,147.44,18.3287271]
[1750176792888,11.54642736,147.48,147.43,18.32923647]
[1750176793092,11.54642736,147.47,147.43,18.32923647]
[1750176794913,42.75145493,147.46,147.41,6.78380028]
[1750176795092,26.0,147.46,147.39,6.7847208]
[1750176795296,16.75145493,147.45,147.41,16.75145493]
[1750176795500,59.70684126,147.49,147.44,16.75145493]
[1750176795693,56.30684126,147.49,147.46,16.75145493]
[1750176796008,56.30684126,147.49,147.45,16.75145493]
[1750176796009,73.05829619,147.49,147.45,16.75145493]
[1750176796202,73.05829619,147.49,147.41,0.14216157]
[1750176796514,19.09540126,147.48,147.43,0.28432314]
[1750176796811,19.09540126,147.48,147.47,16.75145493]
[1750176797184,19.09540126,147.48,147.47,23.53249514]
[1750176798207,19.09540126,147.48,147.44,6.78241996]
[1750176798445,19.09540126,147.48,147.47,16.75145493]
[1750176800488,19.09540126,147.48,147.47,23.53249514]
[1750176800688,19.09540126,147.48,147.47,6.78104021]
[1750176801012,19.09540126,147.48,147.47,16.75145493]
[1750176801696,19.09540126,147.48,147.47,17.17793964]
[1750176801999,19.09540126,147.48,147.47,35.8275885]
[1750176802207,6.98,147.55,147.47,16.8936165]
[1750176802401,16.75145493,147.54,147.47,16.75145493]
[1750176802620,16.75145493,147.54,147.48,6.78058041]
[1750176802797,6.98,147.55,147.48,6.78058041]
[1750176802999,16.75145493,147.54,147.48,6.78058041]
[1750176804319,6.98,147.55,147.52,16.75145493]
[1750176804517,6.98,147.55,147.54,16.75145493]
[1750176805307,6.98,147.55,147.53,16.75145493]
[1750176805616,6.98,147.55,147.54,16.75145493]
[1750176806212,8.5555423,147.59,147.54,16.75145493]
[1750176806415,8.5555423,147.59,147.52,23.72542371]
[1750176806416,8.5555423,147.59,147.57,16.75145493]
[1750176806602,8.5555423,147.59,147.57,23.52751139]
[1750176807224,8.5555423,147.59,147.58,16.75145493]
[1750176807602,8.5555423,147.59,147.57,23.52751139]
[1750176807822,8.5555423,147.59,147.58,16.75145493]
[1750176808322,6.98,147.61,147.58,16.75145493]
[1750176808498,6.98,147.61,147.6,16.75145493]
[1750176808697,26.0,147.64,147.6,23.52652268]
[1750176809093,42.75145493,147.64,147.6,16.75145493]
[1750176809303,42.75145493,147.64,147.6,23.52643056]
[1750176809524,42.75145493,147.64,147.6,16.75145493]
[1750176809731,42.75145493,147.64,147.6,23.52650416]
[1750176810524,6.2563,147.65,147.6,23.52650416]
[1750176810845,6.98,147.67,147.64,16.75145493]
[1750176811200,6.98,147.67,147.65,16.75145493]
[1750176811433,6.98,147.67,147.64,16.75145493]
[1750176811721,23.73145493,147.67,147.63,16.75145493]
[1750176811935,6.98,147.67,147.63,16.75145493]
[1750176812102,6.98,147.67,147.66,16.75145493]
[1750176812426,46.15145493,147.7,147.66,16.75145493]
[1750176812596,72.15145493,147.7,147.66,23.52350683]
[1750176812992,46.15145493,147.7,147.66,23.52350683]
[1750176813222,16.75145493,147.69,147.65,23.52415745]
[1750176813807,16.75145493,147.69,147.64,23.52451898]
[1750176814001,16.75145493,147.69,147.65,16.75145493]
[1750176814202,62.1505175,147.7,147.65,16.75145493]
[1750176814402,26.0,147.7,147.67,16.75145493]
[1750176814623,16.75145493,147.69,147.61,0.14216157]
[1750176814826,11.57396736,147.62,147.55,6.7773636]
[1750176815124,26.0,147.65,147.55,18.35133096]
[1750176815125,11.57396736,147.6,147.55,18.35133096]
[1750176815323,37.57396736,147.61,147.57,11.57396736]
[1750176815516,6.3707,147.64,147.57,0.28432314]
[1750176815517,26.0,147.63,147.57,0.28432314]
[1750176815707,26.0,147.63,147.59,11.57396736]
[1750176815708,37.57396736,147.63,147.59,11.57396736]
[1750176815914,11.57396736,147.61,147.57,11.57396736]
[1750176816104,11.57396736,147.61,147.55,6.7773636]
[1750176816297,11.57396736,147.61,147.57,11.57396736]
[1750176816528,11.57396736,147.61,147.57,18.35003605]
[1750176816940,11.57396736,147.59,147.56,6.77685013]
[1750176817437,11.57396736,147.59,147.54,11.57396736]
[1750176817438,11.57396736,147.58,147.55,6.77718672]
[1750176817614,11.57396736,147.57,147.53,6.77828238]
[1750176817923,11.57396736,147.57,147.53,18.35224974]
[1750176818502,11.57396736,147.57,147.53,6.77828238]
[1750176818703,6.77569435,147.59,147.53,6.77828238]
[1750176818704,11.57396736,147.56,147.53,6.77828238]
[1750176819441,11.57396736,147.54,147.5,11.57396736]
[1750176819601,11.57396736,147.53,147.49,11.57396736]
[1750176819801,11.57396736,147.53,147.49,6.78012068]
[1750176820711,11.57396736,147.53,147.49,18.35408804]
[1750176820920,11.57396736,147.53,147.49,6.78012068]
[1750176821431,11.57396736,147.53,147.49,18.35408804]
[1750176822036,11.57396736,147.53,147.48,11.57396736]
[1750176822426,11.57396736,147.51,147.47,18.35500757]
[1750176822740,11.57396736,147.5,147.47,6.78104021]
[1750176823242,26.0,147.53,147.46,6.78143042]
[1750176823435,11.57396736,147.52,147.47,11.57396736]
[1750176823627,11.57396736,147.51,147.46,6.78143042]
[1750176823833,11.57396736,147.51,147.48,6.78058041]
[1750176824836,40.89396736,147.53,147.49,11.57396736]
[1750176825344,40.89396736,147.53,147.45,6.78195998]
[1750176825345,11.57396736,147.5,147.45,6.78195998]
[1750176825546,11.57396736,147.48,147.45,6.78195998]
[1750176826937,11.57396736,147.48,147.41,23.52656773]
[1750176827137,11.57396736,147.44,147.4,11.57396736]